bitfinex/quotes_SOLUSD_20260310
["timestamp","ask_amount","ask_price","bid_price","bid_amount"]
[1773131716520,2.15683846,87.108,87.07,22.50127543]
[1773131716926,0.14216157,87.118,87.081,1.22606458]
[1773131717235,0.14216157,87.118,87.09,22.29870296]
[1773131717523,0.14216157,87.118,87.081,1.22606458]
[1773131717524,2.15683846,87.116,87.081,1.22606458]
[1773131717726,2.29900003,87.115,87.081,1.22606458]
[1773131717925,2.29900003,87.115,87.082,11.48342941]
[1773131718122,0.14216157,87.115,87.091,1.22754955]
[1773131718436,2.29900003,87.115,87.082,11.48342941]
[1773131719213,2.29900003,87.115,87.09,10.8163758]
[1773131719734,2.29900003,87.115,87.091,11.48224271]
[1773131719928,2.29900003,87.115,87.09,10.8163758]
[1773131720436,2.29900003,87.115,87.09,10.27273725]
[1773131720731,0.94763127,87.114,87.1,10.8163758]
[1773131720937,2.15683846,87.129,87.1,10.8163758]
[1773131720938,11.47783969,87.125,87.1,10.8163758]
[1773131721228,3.10446973,87.124,87.1,10.8163758]
[1773131721429,0.94763127,87.124,87.11,10.8163758]
[1773131721614,0.94763127,87.124,87.1,1.22972536]
[1773131721615,12.42443752,87.133,87.101,11.48092444]
[1773131722132,2.15683846,87.132,87.101,11.48092444]
[1773131722338,3.10446973,87.131,87.101,11.48092444]
[1773131723210,0.94763127,87.131,87.11,10.8163758]
[1773131723430,0.14216157,87.137,87.11,10.8163758]
[1773131723623,0.94763127,87.136,87.11,10.8163758]
[1773131723823,0.94763127,87.136,87.107,11.48000446]
[1773131723824,2.15683846,87.133,87.107,11.48000446]
[1773131724018,0.14216157,87.134,87.101,11.48092444]
[1773131724019,2.15683846,87.131,87.101,11.48092444]
[1773131724213,0.94763127,87.13,87.101,11.48092444]
[1773131725117,0.94763127,87.13,87.102,1.23256648]
[1773131725332,0.94763127,87.13,87.101,40.18323555]
[1773131725333,0.94763127,87.139,87.12,10.8163758]
[1773131725536,0.94763127,87.139,87.13,10.8163758]
[1773131725831,2.15683846,87.147,87.115,11.47906721]
[1773131726129,2.15683846,87.145,87.11,22.29606845]
[1773131726329,2.15683846,87.143,87.11,22.29606845]
[1773131726530,11.47473263,87.148,87.11,22.29606845]
[1773131726531,2.15683846,87.141,87.11,22.29606845]
[1773131726725,2.15683846,87.139,87.11,22.29606845]
[1773131726933,2.15683846,87.137,87.105,11.48036688]
[1773131727234,2.15683846,87.133,87.1,11.480981]
[1773131727435,2.15683846,87.127,87.095,11.48165249]
[1773131727615,2.15683846,87.125,87.095,11.48165249]
[1773131727816,2.15683846,87.123,87.095,11.48165249]
[1773131728044,0.94763127,87.122,87.1,10.8163758]
[1773131728221,3.10446973,87.122,87.1,10.8163758]
[1773131728425,2.15683846,87.121,87.091,11.48224271]
[1773131728739,2.15683846,87.121,87.09,10.8163758]
[1773131728740,2.15683846,87.119,87.09,22.29871555]
[1773131728927,2.15683846,87.117,87.09,22.29871555]
[1773131729240,2.15683846,87.115,87.09,10.8163758]
[1773131729420,0.94763127,87.114,87.09,10.8163758]
[1773131729736,2.15683846,87.112,87.09,10.8163758]
[1773131729947,0.94763127,87.111,87.09,10.8163758]
[1773131730444,3.10446973,87.111,87.09,10.8163758]
[1773131730618,2.15683846,87.11,87.088,11.48251534]
[1773131730821,2.15683846,87.108,87.081,11.48356128]
[1773131731128,0.94763127,87.107,87.081,11.48356128]
[1773131732644,13.72459525,87.149,87.101,0.28958796]
[1773131732825,2.24999428,87.148,87.11,10.8163758]
[1773131733024,3.69383402,87.164,87.11,10.8163758]
[1773131733025,2.24999428,87.139,87.11,10.8163758]
[1773131733331,2.24999428,87.165,87.13,10.8163758]
[1773131733636,2.24999428,87.186,87.16,10.8163758]
[1773131733939,2.24999428,87.205,87.18,10.8163758]
[1773131734319,30.0,87.181,87.18,10.8163758]
[1773131734640,2.24999428,87.195,87.17,10.8163758]
[1773131735228,13.71867331,87.194,87.17,10.8163758]
[1773131735550,2.24999428,87.193,87.17,10.8163758]
[1773131735726,2.24999428,87.193,87.159,0.29223672]
[1773131735727,11.46805085,87.199,87.18,10.8163758]
[1773131736123,2.24999428,87.198,87.18,10.8163758]
[1773131737348,2.24999428,87.198,87.18,22.2868671]
[1773131737520,11.46687683,87.208,87.18,22.2868671]
[1773131737521,2.24999428,87.207,87.19,10.8163758]
[1773131737921,2.24999428,87.207,87.14,91.80567996]
[1773131737922,2.17319079,87.197,87.071,2.21575972]
[1773131738137,2.17319079,87.197,87.07,369.06551925]
[1773131738138,2.17319079,87.119,87.086,2.21852218]
[1773131738758,2.17319079,87.119,87.09,10.8163758]
[1773131739156,2.17319079,87.107,87.07,339.6844403]
[1773131739329,2.17319079,87.133,87.091,2.22123979]
[1773131739654,11.47617386,87.138,87.091,2.22123979]
[1773131739954,2.17319079,87.146,87.11,10.8163758]
[1773131740329,2.17319079,87.146,87.12,10.8163758]
[1773131741250,2.17319079,87.144,87.11,10.8163758]
[1773131741827,2.17319079,87.144,87.12,10.8163758]
[1773131742225,2.17319079,87.144,87.11,10.8163758]
[1773131742426,40.16294681,87.145,87.1,10.8163758]
[1773131742427,2.17319079,87.129,87.1,10.8163758]
[1773131742749,11.47512766,87.145,87.12,10.8163758]
[1773131743146,11.47512766,87.145,87.066,45.94198891]
[1773131743147,2.17319079,87.115,87.057,11.48671483]
[1773131743346,10.8163758,87.13,87.017,45.96750978]
[1773131743347,2.17319079,87.099,87.07,339.6844403]
[1773131743544,2.17319079,87.109,87.07,339.72293984]
[1773131743731,40.17816143,87.112,87.07,328.8680645]
[1773131743732,2.17319079,87.099,87.07,328.8680645]
[1773131744050,2.17319079,87.099,87.07,339.72293984]
[1773131744236,2.17319079,87.099,87.07,328.8680645]
[1773131744849,2.17319079,87.097,87.07,328.8680645]
[1773131745146,2.17319079,87.097,87.07,339.72293984]
[1773131745452,2.17319079,87.097,87.07,328.8680645]
[1773131746163,13.65477433,87.096,87.07,328.8680645]
[1773131746455,2.17319079,87.095,87.07,339.72293984]
[1773131746655,2.17319079,87.095,87.071,11.48488015]
[1773131746837,11.48098508,87.101,87.071,11.48488015]
[1773131747539,11.48098508,87.101,87.08,10.85487534]
[1773131747849,11.48098508,87.101,87.071,11.48488015]
[1773131747850,2.17319079,87.149,87.091,2.22695635]
[1773131748081,2.17319079,87.149,87.11,10.85487534]
[1773131748357,2.17319079,87.129,87.1,10.85487534]
[1773131748659,2.17319079,87.129,87.074,3.69383402]
[1773131748660,10.85487534,87.11,87.08,10.85487534]
[1773131748835,2.38445925,87.109,87.09,10.85487534]
[1773131749157,2.38445925,87.129,87.1,10.85487534]
[1773131749349,2.38445925,87.147,87.11,10.85487534]
[1773131749552,2.38445925,87.139,87.11,10.85487534]
[1773131750146,2.38445925,87.137,87.1,10.85487534]
[1773131750346,2.38445925,87.137,87.101,11.48092444]
[1773131750656,2.38445925,87.137,87.11,10.85487534]
[1773131750963,2.38445925,87.139,87.11,10.85487534]
[1773131751343,2.38445925,87.139,87.101,11.48092444]
[1773131751842,2.38445925,87.139,87.11,10.85487534]
[1773131752547,2.38445925,87.137,87.11,10.85487534]
[1773131753052,2.38445925,87.129,87.1,10.85487534]
[1773131753257,2.38445925,87.129,87.1,22.33588288]
[1773131753664,2.38445925,87.129,87.094,11.48178941]
[1773131753968,2.38445925,87.129,87.1,10.85487534]
[1773131754463,2.38445925,87.129,87.083,2.25884043]
[1773131754646,2.38445925,87.127,87.1,10.85487534]
[1773131755248,2.38445925,87.127,87.09,10.85487534]
[1773131755456,2.38445925,87.127,87.1,10.85487534]
[1773131755646,11.47763009,87.126,87.066,3.69383402]
[1773131755850,10.85487534,87.12,87.081,2.2633854]
[1773131756042,11.47763009,87.126,87.09,10.85487534]
[1773131756356,2.38445925,87.125,87.091,2.26559377]
[1773131756736,2.38445925,87.099,87.066,11.48545381]
[1773131756940,2.38445925,87.109,87.071,2.26559377]
[1773131757162,2.38445925,87.109,87.09,10.85487534]
[1773131757340,2.38445925,87.109,87.08,10.85487534]
[1773131757537,2.38445925,87.109,87.081,11.48356128]
[1773131757761,2.38445925,87.089,87.07,328.8680645]
[1773131759759,13.86706026,87.089,87.07,328.8680645]
[1773131759965,10.85487534,87.08,87.07,192.30121682]
[1773131760145,40.18886701,87.089,87.07,190.6826799]
[1773131760867,10.85487534,87.08,87.07,121.48682583]
[1773131761042,10.85487534,87.08,87.053,2.36047286]
[1773131761238,2.36815869,87.059,87.0,0.1]
[1773131761442,132.04891821,87.089,87.0,0.1]
[1773131761443,10.85487534,87.04,87.01,22.44772221]
[1773131761675,11.48778274,87.049,87.02,22.34643518]
[1773131761847,11.48778274,87.049,87.01,10.95487534]
[1773131762048,13.85594143,87.049,87.011,11.49279976]
[1773131762244,13.8562009,87.079,87.02,10.85487534]
[1773131762450,13.8562009,87.079,87.011,40.22479916]
[1773131762451,10.85487534,87.05,87.011,40.22479916]
[1773131762646,10.85487534,87.05,87.011,11.49279976]
[1773131762857,10.85487534,87.05,87.011,40.22479916]
[1773131763051,10.85487534,87.04,87.011,11.49279976]
[1773131763367,10.85487534,87.04,87.01,13.3153482]
[1773131763569,10.85487534,87.04,87.011,13.88552769]
[1773131763763,11.48910258,87.039,87.011,2.39272793]
[1773131763969,3.69383402,87.076,87.02,10.85487534]
[1773131763970,10.85487534,87.05,87.02,10.85487534]
[1773131764264,22.34253512,87.05,87.02,10.85487534]
[1773131764470,22.34253512,87.05,87.021,2.39272793]
[1773131765473,22.34253512,87.05,87.013,2.39272793]
[1773131765474,24.58197884,87.05,87.013,2.39272793]
[1773131766862,24.58197884,87.05,87.015,2.39272793]
[1773131767072,10.85487534,87.05,87.021,2.39272793]
[1773131767750,11.48778274,87.049,87.015,2.39272793]
[1773131768276,2.23944372,87.048,87.015,2.39272793]
[1773131769059,11.48778274,87.049,87.016,11.49213937]
[1773131769260,10.85487534,87.04,87.016,13.8848673]
[1773131769463,11.48778274,87.049,87.017,2.39272793]
[1773131770048,10.85487534,87.06,87.03,10.85487534]
[1773131770259,10.85487534,87.06,87.031,2.39272793]
[1773131770467,2.23944372,87.065,87.031,2.39272793]
[1773131770661,10.85487534,87.06,87.031,2.39272793]
[1773131770861,40.19800387,87.069,87.016,40.22248781]
[1773131770862,10.85487534,87.05,87.02,13.24760327]
[1773131771073,10.85487534,87.05,87.021,2.39272793]
[1773131771249,10.85487534,87.04,87.022,11.49134701]
[1773131771448,11.48778274,87.049,87.023,2.39272793]
[1773131771653,10.85487534,87.04,87.014,2.39272793]
[1773131772072,13.72722646,87.049,87.014,2.39272793]
[1773131772457,10.85487534,87.05,87.014,2.39272793]
[1773131772661,10.85487534,87.05,87.011,40.22479916]
[1773131772662,10.85487534,87.06,87.021,2.39272793]
[1773131773276,3.69383402,87.084,87.011,40.22479916]
[1773131773277,10.85487534,87.05,87.011,2.39272793]
[1773131773470,10.85487534,87.05,87.013,2.39272793]
[1773131773777,10.85487534,87.05,87.021,2.39272793]
[1773131775668,11.48659514,87.058,87.022,11.49134701]
[1773131775869,11.48659514,87.058,87.023,2.39272793]
[1773131776076,10.85487534,87.05,87.023,2.39272793]
[1773131777371,2.23944372,87.049,87.017,11.49194356]
[1773131777762,2.23944372,87.039,87.012,11.49255785]
[1773131779469,11.48923458,87.038,87.01,0.1]
[1773131779967,11.48923458,87.038,87.01,2.49272793]
[1773131780168,11.48923458,87.038,87.01,10.95487534]
[1773131780368,11.48923458,87.038,87.012,11.49266767]
[1773131780877,11.48923458,87.038,87.013,2.39272793]
[1773131782782,11.48923458,87.038,86.99,0.1]
[1773131782783,2.23944372,87.019,86.99,0.1]
[1773131782972,2.23944372,87.019,86.95,0.2]
[1773131782973,2.23944372,86.989,86.964,11.49898257]
[1773131783167,4.82477569,87.032,86.95,0.2]
[1773131783168,2.23944372,86.979,86.95,0.2]
[1773131783367,3.69383402,87.024,86.94,0.1]
[1773131783368,10.85487534,86.95,86.94,0.1]
[1773131783674,2.23944372,86.949,86.919,11.50492376]
[1773131784065,2.23944372,86.949,86.914,11.50560966]
[1773131784261,2.23944372,86.949,86.91,10.85487534]
[1773131784566,11.50099483,86.949,86.92,10.95487534]
[1773131784767,10.85487534,86.95,86.921,11.50469966]
[1773131785771,10.85487534,86.97,86.931,2.39272793]
[1773131786079,2.23944372,86.969,86.931,2.39272793]
[1773131786278,2.23944372,86.969,86.94,10.85487534]
[1773131786599,2.23944372,86.98,86.941,2.39272793]
[1773131786773,11.49702801,86.979,86.943,2.39272793]
[1773131786972,13.73647173,86.979,86.943,2.39272793]
[1773131787487,2.23944372,86.978,86.943,2.39272793]
[1773131787990,10.85487534,86.97,86.943,2.39272793]
[1773131788872,10.85487534,86.97,86.944,11.50165623]
[1773131789289,2.23944372,86.994,86.961,2.39272793]
[1773131789479,10.85487534,86.99,86.961,2.39272793]
[1773131789678,10.85487534,86.98,86.951,2.39272793]
[1773131790891,2.23944372,86.979,86.952,11.50059803]
[1773131791792,2.23944372,86.978,86.95,10.85487534]
[1773131792192,10.85487534,86.97,86.944,11.50165623]
[1773131792787,11.49729238,86.977,86.944,11.50165623]
[1773131792998,13.7367361,86.977,86.944,13.89438416]
[1773131793303,2.23944372,86.986,86.96,13.24760327]
[1773131793604,2.23944372,86.986,86.96,13.10971752]
[1773131793784,10.85487534,86.99,86.961,2.25484218]
[1773131794111,2.25380166,86.979,86.947,2.25484218]
[1773131794396,10.85487534,86.99,86.961,2.25484218]
[1773131794606,10.85487534,87.0,86.971,2.25484218]
[1773131794813,10.85487534,87.0,86.973,2.25484218]
[1773131794991,11.49438499,86.999,86.973,2.25484218]
[1773131795380,11.49382389,87.004,86.973,2.25484218]
[1773131796198,2.25380166,87.017,86.981,2.25484218]
[1773131796686,11.49213937,87.016,86.981,2.25484218]
[1773131797801,11.49213937,87.016,86.99,10.85487534]
[1773131798013,10.85487534,87.02,86.991,2.25484218]
[1773131798182,11.4896306,87.035,87.011,2.25484218]
[1773131799700,2.25380166,87.029,86.945,3.69383402]
[1773131799905,2.25380166,87.019,86.99,10.85487534]
[1773131800126,10.85487534,87.01,86.942,143.77401025]
[1773131800412,2.25380166,87.019,86.99,10.85487534]
[1773131801611,11.49187524,87.018,86.991,11.49544205]
[1773131801795,11.49187524,87.018,86.99,10.85487534]
[1773131801996,2.25380166,87.017,86.986,13.75083639]
[1773131802296,11.49062729,87.028,87.001,2.25484218]
[1773131802704,2.25380166,87.034,87.01,10.85487534]
[1773131802898,2.25380166,87.038,87.009,2.25484218]
[1773131803209,2.25380166,87.038,87.01,10.85487534]
[1773131803401,2.25380166,87.038,87.009,2.25484218]
[1773131803701,2.25380166,87.038,87.01,22.34780718]
[1773131803906,11.48859,87.043,87.02,10.85487534]
[1773131804106,3.69383402,87.074,87.02,10.85487534]
[1773131804107,11.48742683,87.052,87.021,2.25484218]
[1773131804490,2.25380166,87.049,87.011,2.25484218]
[1773131804690,2.25380166,87.049,87.02,10.85487534]
[1773131805087,2.25380166,87.049,87.011,2.25484218]
[1773131805920,2.25380166,87.047,87.02,10.87055861]
[1773131806716,2.25380166,87.039,87.0,10.87055861]
[1773131806918,2.25380166,87.039,87.001,2.25484218]
[1773131807210,2.25380166,87.039,87.01,10.87055861]
[1773131807909,2.25380166,87.037,87.002,11.49398864]
[1773131808110,2.25380166,87.037,87.01,10.87055861]
[1773131809107,2.25380166,87.029,87.001,2.25484218]
[1773131809695,2.25380166,87.029,87.01,10.87055861]
[1773131810012,13.74434184,87.029,87.003,11.49385653]
[1773131810993,2.36075497,87.028,87.003,11.49385653]
[1773131812413,2.36075497,87.028,87.0,10.87055861]
[1773131812619,2.36075497,87.028,87.001,11.49412075]
[1773131812824,2.36075497,87.028,87.0,10.87055861]
[1773131813320,2.36075497,87.027,87.001,11.49412075]
[1773131813816,2.36075497,87.027,86.994,2.38802057]
[1773131813817,2.36075497,87.009,86.954,2.38802057]
[1773131813996,2.36075497,86.979,86.945,2.38802057]
[1773131814205,2.36075497,86.979,86.951,2.38802057]
[1773131814403,2.36075497,86.989,86.951,2.38802057]
[1773131815200,10.87055861,86.98,86.951,2.38802057]
[1773131815400,11.49702801,86.979,86.952,13.8886186]
[1773131815720,11.49464924,86.997,86.961,2.38802057]
[1773131815907,2.36075497,86.996,86.961,2.38802057]
[1773131816107,2.36075497,86.969,86.933,11.5029871]
[1773131816314,2.36075497,86.969,86.941,2.38802057]
[1773131817534,11.4984822,86.968,86.941,2.38802057]
[1773131817716,11.4984822,86.968,86.942,11.50192082]
[1773131818329,11.4984822,86.968,86.92,28.86180592]
[1773131818330,2.36075497,86.967,86.938,11.50239115]
[1773131818721,2.36075497,86.967,86.94,10.87055861]
[1773131819030,2.36075497,86.967,86.938,11.50239115]
[1773131819730,2.36075497,86.959,86.931,11.50337624]
[1773131820718,2.36075497,86.959,86.932,2.38802057]
[1773131820918,11.49822839,86.97,86.941,2.38802057]
[1773131821228,24.72954197,86.97,86.941,2.38802057]
[1773131821424,2.36075497,86.969,86.941,2.38802057]
[1773131821728,4.82477569,86.995,86.93,0.1]
[1773131821729,2.36075497,86.959,86.93,0.1]
[1773131821923,2.36075497,86.949,86.93,0.1]
[1773131822231,2.36075497,86.929,86.89,10.87055861]
[1773131822431,2.36075497,86.929,86.881,11.50999643]
[1773131822432,2.36075497,86.938,86.901,2.38802057]
[1773131822640,2.36075497,86.938,86.911,2.38802057]
[1773131823212,2.36075497,86.938,86.91,10.87055861]
[1773131823413,2.36075497,86.938,86.903,2.38802057]
[1773131823625,2.36075497,86.938,86.9,10.87055861]
[1773131823832,2.47590909,86.929,86.9,10.87055861]
[1773131824215,11.50258232,86.937,86.91,10.87055861]
[1773131824416,11.50193022,86.942,86.911,2.51524164]
[1773131824717,11.50125938,86.947,86.92,10.87055861]
[1773131825537,2.47590909,86.957,86.921,2.51524164]
[1773131825935,10.87055861,86.95,86.921,2.51524164]
[1773131826317,2.47590909,86.949,86.921,2.51524164]
[1773131827539,2.47590909,86.949,86.923,2.51524164]
[1773131827916,2.47590909,86.957,86.93,13.38580025]
[1773131828417,2.47590909,86.957,86.931,2.51524164]
[1773131828614,2.47590909,86.957,86.94,10.87055861]
[1773131829040,2.47590909,86.957,86.931,2.51524164]
[1773131829553,11.49913571,86.964,86.941,2.51524164]
[1773131829837,11.49913571,86.964,86.94,10.87055861]
[1773131830038,2.47590909,86.968,86.94,10.87055861]
[1773131830915,2.47590909,86.968,86.93,22.37398589]
[1773131831233,2.47590909,86.959,86.93,22.37398589]
[1773131831815,2.47590909,86.959,86.928,11.50377323]
[1773131832034,2.47590909,86.959,86.865,46.04804609]
[1773131832035,2.47590909,86.968,86.932,2.51524164]
[1773131832335,11.49861441,86.967,86.94,10.87055861]
[1773131832635,2.47590909,86.966,86.932,2.51524164]
[1773131833435,2.47590909,86.959,86.931,11.50337624]
[1773131834236,11.4998045,86.958,86.932,2.51524164]
[1773131835544,11.4998045,86.958,86.94,10.87055861]
[1773131836243,11.4998045,86.958,86.932,2.51524164]
[1773131836420,13.3464677,86.96,86.932,2.51524164]
[1773131836621,2.47590909,86.959,86.932,2.51524164]
[1773131838029,2.47590909,86.959,86.933,11.50311159]
[1773131838217,2.47590909,86.959,86.934,2.51524164]
[1773131838422,2.47590909,86.957,86.921,2.51524164]
[1773131838657,2.47590909,86.949,86.921,2.51524164]
[1773131838825,10.87055861,86.93,86.9,2.51524164]
[1773131839138,10.87055861,86.93,86.88,0.1]
[1773131839139,2.47590909,86.939,86.911,2.51524164]
[1773131839720,2.47590909,86.939,86.91,10.87055861]
[1773131839934,2.47590909,86.939,86.91,13.38580025]
[1773131840335,2.47590909,86.939,86.91,2.51524164]
[1773131840749,2.47590909,86.919,86.88,0.1]
[1773131840947,2.47590909,86.889,86.86,11.61274106]
[1773131841128,2.47590909,86.889,86.86,22.48329967]
[1773131841330,2.47590909,86.889,86.861,2.51524164]
[1773131841531,2.47590909,86.899,86.87,10.87055861]
[1773131841743,2.47590909,86.899,86.861,2.51524164]
[1773131842239,10.87055861,86.89,86.861,2.51524164]
[1773131842437,2.47590909,86.889,86.86,0.1]
[1773131842639,2.47590909,86.869,86.85,0.1]
[1773131842855,10.87055861,86.86,86.85,0.1]
[1773131843848,2.47590909,86.859,86.826,11.51728744]
[1773131844032,11.51171892,86.868,86.84,13.48580025]
[1773131844239,11.51171892,86.868,86.841,2.51524164]
[1773131844548,13.98632114,86.878,86.841,2.51524164]
[1773131844752,13.98632114,86.878,86.843,2.51524164]
[1773131845840,2.47590909,86.902,86.843,2.51524164]
[1773131846037,10.87055861,86.89,86.851,2.51524164]
[1773131846230,2.47590909,86.889,86.851,2.51524164]
[1773131846547,2.47590909,86.889,86.861,2.51524164]
[1773131846850,11.50774471,86.898,86.87,10.87055861]
[1773131847028,2.47590909,86.899,86.87,10.87055861]
[1773131847228,13.98355062,86.899,86.863,2.51524164]
[1773131847935,2.47590909,86.898,86.863,2.51524164]
[1773131848346,2.47590909,86.898,86.87,10.87055861]
[1773131848933,11.50787714,86.897,86.864,11.51224903]
[1773131849252,11.50787714,86.897,86.864,14.02749067]
[1773131849435,2.47590909,86.896,86.864,14.02749067]
[1773131849759,2.47590909,86.869,86.84,0.1]
[1773131850056,2.47590909,86.869,86.82,0.2]
[1773131850057,2.47590909,86.845,86.773,2.51524164]
[1773131850228,2.47590909,86.819,86.781,2.51524164]
[1773131850427,2.47590909,86.819,86.79,13.38580025]
[1773131850632,2.47590909,86.828,86.8,10.87055861]
[1773131850840,2.47590909,86.828,86.791,2.51524164]
[1773131851060,13.99306389,86.827,86.792,11.52179924]
[1773131851244,2.47590909,86.826,86.792,11.52179924]
[1773131851576,2.47590909,86.826,86.8,10.87055861]
[1773131851861,2.47590909,86.826,86.793,2.51524164]
[1773131853767,10.87055861,86.83,86.794,11.52153374]
[1773131853768,11.51742009,86.825,86.794,11.52153374]
[1773131853960,11.51742009,86.825,86.795,2.48919988]
[1773131854272,2.36695809,86.827,86.795,2.48919988]
[1773131854565,46.03403323,86.893,86.821,2.48919988]
[1773131854566,11.51393604,86.852,86.821,2.48919988]
[1773131854784,2.36695809,86.851,86.82,10.87055861]
[1773131855067,2.36695809,86.849,86.811,2.48919988]
[1773131856365,2.36695809,86.847,86.82,10.87055861]
[1773131857164,2.36695809,86.847,86.813,2.48919988]
[1773131857467,2.36695809,86.857,86.821,2.48919988]
[1773131857664,2.36695809,86.849,86.812,14.00834469]
[1773131857864,2.36695809,86.839,86.81,10.87055861]
[1773131858546,2.36695809,86.848,86.82,10.87055861]
[1773131858771,2.36695809,86.847,86.812,2.48919988]
[1773131859561,2.36695809,86.867,86.831,2.48919988]
[1773131859865,2.36695809,86.867,86.84,10.87055861]
[1773131860063,2.36695809,86.867,86.831,2.48919988]
[1773131860250,2.36695809,86.867,86.84,10.87055861]
[1773131860562,2.36695809,86.876,86.842,2.48919988]
[1773131860757,92.00934637,86.948,86.851,2.48919988]
[1773131860758,2.36695809,86.889,86.851,2.48919988]
[1773131860960,2.36695809,86.889,86.861,2.48919988]
[1773131861264,2.36695809,86.899,86.87,10.87055861]
[1773131861674,2.36695809,86.916,86.88,10.87055861]
[1773131862465,2.36695809,86.909,86.88,10.87055861]
[1773131862665,2.36695809,86.909,86.881,11.50999643]
[1773131864467,2.36695809,86.909,86.88,10.87055861]
[1773131864667,2.36695809,86.909,86.846,3.69383402]
[1773131864668,2.36695809,86.907,86.867,14.00094265]
[1773131864973,2.36695809,86.907,86.88,10.87055861]
[1773131865553,2.36695809,86.907,86.871,2.48919988]
[1773131865770,11.50668538,86.906,86.872,11.51118887]
[1773131865976,2.36695809,86.905,86.87,10.9042951]
[1773131866166,2.36695809,86.905,86.871,11.51132138]
[1773131866475,11.50401742,86.927,86.901,2.48919988]
[1773131866769,2.36695809,86.936,86.901,2.48919988]
[1773131867071,2.36695809,86.936,86.871,97.84623176]
[1773131867072,2.36695809,86.929,86.891,2.48919988]
[1773131867970,2.36695809,86.928,86.893,2.48919988]
[1773131868479,11.50277744,86.936,86.901,2.48919988]
[1773131868774,11.50277744,86.936,86.91,10.9042951]
[1773131869072,13.27125319,86.94,86.901,2.48919988]
[1773131869257,2.36695809,86.939,86.901,2.48919988]
[1773131869957,10.9042951,86.94,86.892,40.27988767]
[1773131869958,2.36695809,86.937,86.903,2.48919988]
[1773131871063,10.9042951,86.95,86.911,2.48919988]
[1773131871371,2.36695809,86.956,86.921,2.48919988]
[1773131871555,10.9042951,86.95,86.921,2.48919988]
[1773131871752,2.36695809,86.949,86.903,2.48919988]
[1773131872375,2.57399616,86.947,86.911,2.56972402]
[1773131872962,2.57399616,86.957,86.921,2.56972402]
[1773131873173,14.07405161,86.957,86.921,2.56972402]
[1773131874570,11.49916662,86.963,86.923,2.56972402]
[1773131875580,2.57399616,86.962,86.923,2.56972402]
[1773131875780,10.9042951,86.96,86.923,2.56972402]
[1773131876772,11.49940778,86.961,86.925,2.56972402]
[1773131876991,10.9042951,86.96,86.925,2.56972402]
[1773131877691,11.49940778,86.961,86.925,2.56972402]
[1773131878384,2.57399616,86.962,86.925,2.56972402]
[1773131878890,2.57399616,86.962,86.898,46.03061032]
[1773131878891,2.57399616,86.939,86.897,2.56972402]
[1773131879068,2.57399616,86.939,86.901,2.56972402]
[1773131879388,2.57399616,86.951,86.911,2.56972402]
[1773131879569,2.57399616,86.959,86.911,2.56972402]
[1773131880693,10.9042951,86.95,86.913,2.56972402]
[1773131881290,10.9042951,86.96,86.921,2.56972402]
[1773131881587,2.57399616,86.959,86.921,2.56972402]
[1773131882894,11.4998045,86.958,86.923,2.56972402]
[1773131883070,10.9042951,86.94,86.916,11.50526482]
[1773131883275,2.57399616,86.939,86.913,14.07548265]
[1773131883569,2.39845639,86.929,86.896,2.56878564]
[1773131883774,2.39845639,86.929,86.897,11.50787714]
[1773131883994,10.9042951,86.92,86.897,11.50787714]
[1773131884188,10.9042951,86.92,86.877,2.56878564]
[1773131884386,10.9042951,86.92,86.878,2.56878564]
[1773131884692,10.9042951,86.92,86.877,28.77631594]
[1773131884693,2.39845639,86.919,86.881,2.56878564]
[1773131884896,11.50290037,86.935,86.891,2.56878564]
[1773131885781,2.39845639,86.949,86.911,2.56878564]
[1773131886090,13.89945122,86.949,86.911,2.56878564]
[1773131886397,2.39845639,86.948,86.911,2.56878564]
[1773131886598,2.39845639,86.948,86.793,19.08001848]
[1773131886599,2.39845639,86.919,86.848,2.56878564]
[1773131886902,10.9042951,86.88,86.85,2.56878564]
[1773131887792,2.39845639,86.879,86.85,2.56878564]
[1773131889077,2.39845639,86.879,86.851,11.5139722]
[1773131889475,13.90880579,86.879,86.851,11.5139722]
[1773131889672,10.9042951,86.87,86.851,11.5139722]
[1773131889875,10.9042951,86.87,86.841,11.51529807]
[1773131890076,2.39845639,86.878,86.842,2.56878564]
[1773131891180,10.9042951,86.88,86.82,46.07194213]
[1773131891181,10.9042951,86.9,86.861,2.56878564]
[1773131891692,2.39845639,86.899,86.861,2.56878564]
[1773131891900,10.9042951,86.9,86.861,2.56878564]
[1773131891901,2.39845639,86.889,86.861,2.56878564]
[1773131893295,2.39845639,86.889,86.862,11.5125141]
[1773131893998,2.39845639,86.889,86.85,10.9042951]
[1773131893999,2.39845639,86.869,86.834,11.51622636]
[1773131894197,10.9042951,86.86,86.834,11.51622636]
[1773131894499,10.9042951,86.87,86.835,2.56878564]
[1773131894894,2.39845639,86.869,86.835,2.56878564]
[1773131895284,2.39845639,86.879,86.835,2.56878564]
[1773131895490,2.39845639,86.877,86.837,2.56878564]
[1773131896385,2.39845639,86.869,86.838,11.51569589]
[1773131896990,2.39845639,86.869,86.839,2.56878564]
[1773131897182,2.39845639,86.875,86.839,2.56878564]
[1773131897382,2.39845639,86.869,86.839,2.56878564]
[1773131899603,2.39845639,86.867,86.828,2.56878564]
[1773131899798,10.9042951,86.86,86.828,2.56878564]